[Event "Late-Titled-Tuesday-Blitz-October-03-2023"]
[Site "Chess.com"]
[Date "2023.10.03"]
[Round "2"]
[White "TheMagician"]
[Black "Levanzovsky"]
[Result "0-1"]
[WhiteElo "2187"]
[BlackElo "2454"]
[TimeControl "180+1"]
[EndTime "14:17:19 PDT"]
[Termination "Levanzovsky won on time"]

1. d4 {[%clk 0:02:53.9]} 1... Nf6 {[%clk 0:02:57.8]} 2. Nf3 {[%clk 0:02:54]}
2... c5 {[%clk 0:02:56.3]} 3. e3 {[%clk 0:02:52.5]} 3... cxd4 {[%clk 0:02:50.2]}
4. exd4 {[%clk 0:02:52.2]} 4... g6 {[%clk 0:02:50.9]} 5. c3 {[%clk 0:02:42.1]}
5... Bg7 {[%clk 0:02:50.2]} 6. Bg5 {[%clk 0:02:37.5]} 6... O-O {[%clk
0:02:51.1]} 7. Nbd2 {[%clk 0:02:33.7]} 7... d5 {[%clk 0:02:51]} 8. Bd3 {[%clk
0:02:30.7]} 8... Nc6 {[%clk 0:02:50.9]} 9. O-O {[%clk 0:02:28.4]} 9... h6 {[%clk
0:02:48.8]} 10. Bxf6 {[%clk 0:02:27.9]} 10... Bxf6 {[%clk 0:02:48.7]} 11. Re1
{[%clk 0:02:27.5]} 11... Kg7 {[%clk 0:02:46.1]} 12. h3 {[%clk 0:02:27.5]} 12...
h5 {[%clk 0:02:45.3]} 13. b4 {[%clk 0:02:21.5]} 13... e6 {[%clk 0:02:33.2]} 14.
Nb3 {[%clk 0:02:20]} 14... Bd7 {[%clk 0:02:23.3]} 15. a4 {[%clk 0:02:19.7]}
15... Rc8 {[%clk 0:02:07.1]} 16. Nc5 {[%clk 0:02:19.1]} 16... b6 {[%clk
0:02:05.9]} 17. Nxd7 {[%clk 0:02:13.6]} 17... Qxd7 {[%clk 0:02:06.8]} 18. Bb5
{[%clk 0:02:13.6]} 18... Qd6 {[%clk 0:02:04.9]} 19. Re3 {[%clk 0:02:07.6]} 19...
Ne7 {[%clk 0:02:03]} 20. Qe1 {[%clk 0:01:54.4]} 20... Nf5 {[%clk 0:01:58.4]} 21.
Rd3 {[%clk 0:01:52.9]} 21... h4 {[%clk 0:01:51.6]} 22. Ba6 {[%clk 0:01:44]}
22... Rc7 {[%clk 0:01:49]} 23. Nh2 {[%clk 0:01:38.1]} 23... e5 {[%clk
0:01:28.9]} 24. dxe5 {[%clk 0:01:36.7]} 24... Qxe5 {[%clk 0:01:23.1]} 25. Qxe5
{[%clk 0:01:20.2]} 25... Bxe5 {[%clk 0:01:24]} 26. Rxd5 {[%clk 0:01:12.5]} 26...
Bxc3 {[%clk 0:01:12.8]} 27. Rc1 {[%clk 0:01:08.8]} 27... Re8 {[%clk 0:01:09.5]}
28. Bd3 {[%clk 0:00:56.4]} 28... Re1+ {[%clk 0:00:48.3]} 29. Rxe1 {[%clk
0:00:55.3]} 29... Bxe1 {[%clk 0:00:49.2]} 30. Bxf5 {[%clk 0:00:55.7]} 30... gxf5
{[%clk 0:00:50.1]} 31. b5 {[%clk 0:00:34]} 31... Kf6 {[%clk 0:00:42.7]} 32. Kf1
{[%clk 0:00:32.9]} 32... Bb4 {[%clk 0:00:38.9]} 33. Nf3 {[%clk 0:00:32.7]} 33...
Rc1+ {[%clk 0:00:36.6]} 34. Ke2 {[%clk 0:00:33.1]} 34... Rc2+ {[%clk 0:00:33.8]}
35. Kf1 {[%clk 0:00:21]} 35... Bc5 {[%clk 0:00:29.5]} 36. Nd4 {[%clk 0:00:20.7]}
36... Rd2 {[%clk 0:00:21.2]} 37. Rxc5 {[%clk 0:00:10.7]} 37... bxc5 {[%clk
0:00:20.3]} 38. Nc6 {[%clk 0:00:11.4]} 38... c4 {[%clk 0:00:17.5]} 39. Ke1
{[%clk 0:00:10.1]} 39... c3 {[%clk 0:00:17.2]} 40. Nxa7 {[%clk 0:00:10.3]} 40...
Ra2 {[%clk 0:00:12.3]} 41. Kd1 {[%clk 0:00:10]} 41... Rxa4 {[%clk 0:00:11.6]}
42. b6 {[%clk 0:00:09.1]} 42... Rb4 {[%clk 0:00:10.4]} 43. Kc2 {[%clk
0:00:07.9]} 43... Rxb6 {[%clk 0:00:08.2]} 44. Kxc3 {[%clk 0:00:08.4]} 44... Ke6
{[%clk 0:00:04.2]} 0-1

[Event "Late-Titled-Tuesday-Blitz-October-03-2023"]
[Site "Chess.com"]
[Date "2023.10.03"]
[Round "2"]
[White "TheoSlade"]
[Black "chessajedrezz2020"]
[Result "0-1"]
[WhiteElo "2509"]
[BlackElo "2724"]
[TimeControl "180+1"]
[EndTime "14:17:21 PDT"]
[Termination "chessajedrezz2020 won by checkmate"]

1. d4 {[%clk 0:03:00.9]} 1... d5 {[%clk 0:02:51.4]} 2. c4 {[%clk 0:03:01.2]}
2... e6 {[%clk 0:02:50.5]} 3. Nf3 {[%clk 0:03:01.8]} 3... Be7 {[%clk 0:02:49.5]}
4. g3 {[%clk 0:03:01.1]} 4... Nf6 {[%clk 0:02:45.8]} 5. Bg2 {[%clk 0:03:00.9]}
5... O-O {[%clk 0:02:46.1]} 6. O-O {[%clk 0:03:01.5]} 6... c6 {[%clk 0:02:45.7]}
7. Qc2 {[%clk 0:03:02]} 7... b6 {[%clk 0:02:42.9]} 8. Nbd2 {[%clk 0:02:58.7]}
8... Bb7 {[%clk 0:02:41.8]} 9. e4 {[%clk 0:02:58.5]} 9... Na6 {[%clk 0:02:32.5]}
10. e5 {[%clk 0:02:56.5]} 10... Nd7 {[%clk 0:02:31.8]} 11. cxd5 {[%clk
0:02:56.2]} 11... cxd5 {[%clk 0:02:30.7]} 12. Re1 {[%clk 0:02:43.1]} 12... Nb4
{[%clk 0:02:28.9]} 13. Qd1 {[%clk 0:02:19.1]} 13... Rc8 {[%clk 0:02:23.7]} 14.
Nf1 {[%clk 0:01:48.4]} 14... Nc2 {[%clk 0:02:21]} 15. Rb1 {[%clk 0:01:48.4]}
15... Nxe1 {[%clk 0:02:17]} 16. Qxe1 {[%clk 0:01:49.3]} 16... Ba6 {[%clk
0:02:10.9]} 17. Qd1 {[%clk 0:01:43.7]} 17... Rc6 {[%clk 0:01:46]} 18. Ne3 {[%clk
0:01:42]} 18... Qc7 {[%clk 0:01:36.2]} 19. h4 {[%clk 0:01:36.8]} 19... Rc8
{[%clk 0:01:35.4]} 20. Bd2 {[%clk 0:01:37.3]} 20... Bd3 {[%clk 0:01:31.4]} 21.
Ra1 {[%clk 0:01:36.4]} 21... Be4 {[%clk 0:01:30.4]} 22. h5 {[%clk 0:01:28.1]}
22... h6 {[%clk 0:01:08.3]} 23. b3 {[%clk 0:01:15]} 23... a5 {[%clk 0:01:00.8]}
24. Nh2 {[%clk 0:01:12.9]} 24... Bxg2 {[%clk 0:00:41.6]} 25. Kxg2 {[%clk
0:01:13.8]} 25... Ba3 {[%clk 0:00:31.2]} 26. Rb1 {[%clk 0:01:11]} 26... Bc1
{[%clk 0:00:30.3]} 27. Nf3 {[%clk 0:00:53.8]} 27... Bxd2 {[%clk 0:00:30]} 28.
Qxd2 {[%clk 0:00:53.8]} 28... Rc1 {[%clk 0:00:27.8]} 29. Rxc1 {[%clk 0:00:48.2]}
29... Qxc1 {[%clk 0:00:28.2]} 30. Qe2 {[%clk 0:00:49]} 30... Nf8 {[%clk
0:00:20.9]} 31. g4 {[%clk 0:00:48.9]} 31... Nh7 {[%clk 0:00:21.3]} 32. Qb5
{[%clk 0:00:41.9]} 32... Qc6 {[%clk 0:00:20.8]} 33. Qd3 {[%clk 0:00:41.4]} 33...
b5 {[%clk 0:00:18.6]} 34. Qd2 {[%clk 0:00:41]} 34... b4 {[%clk 0:00:18.4]} 35.
Qd3 {[%clk 0:00:41.2]} 35... Qc7 {[%clk 0:00:13.8]} 36. Qd2 {[%clk 0:00:39.2]}
36... Qc3 {[%clk 0:00:13.4]} 37. Qe2 {[%clk 0:00:39]} 37... Qa1 {[%clk
0:00:12.9]} 38. Qa6 {[%clk 0:00:32.6]} 38... Rf8 {[%clk 0:00:04.9]} 39. Qxa5
{[%clk 0:00:32.8]} 39... Qc3 {[%clk 0:00:05.3]} 40. a3 {[%clk 0:00:29.3]} 40...
Qxb3 {[%clk 0:00:04.8]} 41. axb4 {[%clk 0:00:29.9]} 41... Qb1 {[%clk 0:00:04.8]}
42. Qb6 {[%clk 0:00:25.7]} 42... Ng5 {[%clk 0:00:03.4]} 43. Nxg5 {[%clk
0:00:25.3]} 43... hxg5 {[%clk 0:00:04.3]} 44. b5 {[%clk 0:00:18.2]} 44... Qe4+
{[%clk 0:00:03.2]} 45. Kg1 {[%clk 0:00:18.4]} 45... Rc8 {[%clk 0:00:02.9]} 46.
Kh2 {[%clk 0:00:14.7]} 46... Rc1 {[%clk 0:00:02.7]} 47. Qd8+ {[%clk 0:00:09.2]}
47... Kh7 {[%clk 0:00:03.2]} 48. Ng2 {[%clk 0:00:06.1]} 48... Qxd4 {[%clk
0:00:02.5]} 49. Qxg5 {[%clk 0:00:06.3]} 49... Qxf2 {[%clk 0:00:03.1]} 50. h6
{[%clk 0:00:04.5]} 50... Qg1+ {[%clk 0:00:02.5]} 51. Kh3 {[%clk 0:00:04.3]}
51... Rc3+ {[%clk 0:00:02.9]} 52. Kh4 {[%clk 0:00:04.8]} 52... Qh2# {[%clk
0:00:03.3]} 0-1

[Event "Late-Titled-Tuesday-Blitz-October-03-2023"]
[Site "Chess.com"]
[Date "2023.10.03"]
[Round "2"]
[White "Abund"]
[Black "elmusmolamas"]
[Result "1-0"]
[WhiteElo "2771"]
[BlackElo "2525"]
[TimeControl "180+1"]
[EndTime "14:17:23 PDT"]
[Termination "Abund won by checkmate"]

1. c4 {[%clk 0:03:00.9]} 1... f5 {[%clk 0:02:57.2]} 2. g3 {[%clk 0:02:57.9]}
2... Nf6 {[%clk 0:02:57]} 3. Bg2 {[%clk 0:02:58.3]} 3... g6 {[%clk 0:02:57.9]}
4. Nc3 {[%clk 0:02:53.2]} 4... Bg7 {[%clk 0:02:58.8]} 5. d3 {[%clk 0:02:44.1]}
5... O-O {[%clk 0:02:53.2]} 6. e3 {[%clk 0:02:44]} 6... c6 {[%clk 0:02:51.7]} 7.
Nge2 {[%clk 0:02:43.6]} 7... d6 {[%clk 0:02:50.9]} 8. O-O {[%clk 0:02:41.8]}
8... Na6 {[%clk 0:02:51.5]} 9. Rb1 {[%clk 0:02:41]} 9... Nc7 {[%clk 0:02:52.2]}
10. b4 {[%clk 0:02:41.2]} 10... Qe8 {[%clk 0:02:47]} 11. b5 {[%clk 0:02:37.3]}
11... Bd7 {[%clk 0:02:47.5]} 12. a4 {[%clk 0:02:31.1]} 12... h6 {[%clk
0:02:41.7]} 13. Ba3 {[%clk 0:02:23.5]} 13... g5 {[%clk 0:02:41.1]} 14. Qb3
{[%clk 0:02:09.7]} 14... Kh8 {[%clk 0:02:40.4]} 15. bxc6 {[%clk 0:02:02.6]}
15... Bxc6 {[%clk 0:02:38.2]} 16. Nd4 {[%clk 0:01:52.5]} 16... Bxg2 {[%clk
0:02:30.9]} 17. Kxg2 {[%clk 0:01:53.4]} 17... b6 {[%clk 0:02:22.5]} 18. Nxf5
{[%clk 0:01:42.8]} 18... Ng4 {[%clk 0:02:08.6]} 19. Nxg7 {[%clk 0:01:37.7]}
19... Kxg7 {[%clk 0:02:09.5]} 20. Bb2 {[%clk 0:01:23.6]} 20... e5 {[%clk
0:01:46]} 21. Ne4 {[%clk 0:01:17.3]} 21... Qc6 {[%clk 0:01:38.2]} 22. h3 {[%clk
0:01:06]} 22... Nf6 {[%clk 0:01:35]} 23. f3 {[%clk 0:01:06.2]} 23... Rf7 {[%clk
0:01:27.1]} 24. Rf2 {[%clk 0:01:01.6]} 24... Raf8 {[%clk 0:01:26.7]} 25. Rbf1
{[%clk 0:01:01.6]} 25... a6 {[%clk 0:00:42.4]} 26. Kg1 {[%clk 0:00:59.8]} 26...
Ne6 {[%clk 0:00:34.9]} 27. Ba3 {[%clk 0:00:48.6]} 27... Nxe4 {[%clk 0:00:34.3]}
28. fxe4 {[%clk 0:00:48.6]} 28... Rxf2 {[%clk 0:00:20]} 29. Rxf2 {[%clk
0:00:49.5]} 29... Rxf2 {[%clk 0:00:20.4]} 30. Kxf2 {[%clk 0:00:50.2]} 30... h5
{[%clk 0:00:17.8]} 31. Qd1 {[%clk 0:00:44.3]} 31... Kh6 {[%clk 0:00:13.5]} 32.
Qf3 {[%clk 0:00:39.1]} 32... Qd7 {[%clk 0:00:09.8]} 33. Qf6+ {[%clk 0:00:34.4]}
33... Kh7 {[%clk 0:00:10.4]} 34. Kg2 {[%clk 0:00:31.5]} 34... Qe8 {[%clk
0:00:08.7]} 35. Bxd6 {[%clk 0:00:29.5]} 35... Ng7 {[%clk 0:00:08.3]} 36. Bxe5
{[%clk 0:00:29.3]} 36... Ne6 {[%clk 0:00:06.4]} 37. Qf5+ {[%clk 0:00:22.5]}
37... Kg8 {[%clk 0:00:05.3]} 38. Qf6 {[%clk 0:00:18.3]} 38... Qc6 {[%clk
0:00:04.5]} 39. Qh8+ {[%clk 0:00:17.8]} 39... Kf7 {[%clk 0:00:04.9]} 40. Qxh5+
{[%clk 0:00:18]} 40... Ke7 {[%clk 0:00:05.6]} 41. Qh7+ {[%clk 0:00:18.1]} 41...
Ke8 {[%clk 0:00:05]} 42. Qh8+ {[%clk 0:00:18.3]} 42... Nf8 {[%clk 0:00:03.6]}
43. Bg7 {[%clk 0:00:17.2]} 43... Qxa4 {[%clk 0:00:04.1]} 44. Qxf8+ {[%clk
0:00:17.4]} 44... Kd7 {[%clk 0:00:05]} 45. Qf7+ {[%clk 0:00:18]} 45... Kc8
{[%clk 0:00:05.6]} 46. Qe6+ {[%clk 0:00:18.3]} 46... Kb7 {[%clk 0:00:04.8]} 47.
Qd5+ {[%clk 0:00:18.7]} 47... Ka7 {[%clk 0:00:05.4]} 48. Qf7+ {[%clk 0:00:18.5]}
48... Ka8 {[%clk 0:00:05.4]} 49. Bd4 {[%clk 0:00:17.9]} 49... Qc2+ {[%clk
0:00:03.8]} 50. Qf2 {[%clk 0:00:18]} 50... Qxd3 {[%clk 0:00:04.3]} 51. Bxb6
{[%clk 0:00:18.4]} 51... Qxc4 {[%clk 0:00:03.4]} 52. Bd4 {[%clk 0:00:18.2]}
52... a5 {[%clk 0:00:03.9]} 53. Qf8+ {[%clk 0:00:17.8]} 53... Kb7 {[%clk
0:00:03.9]} 54. Qe7+ {[%clk 0:00:18.4]} 54... Ka8 {[%clk 0:00:04.1]} 55. Qa7#
{[%clk 0:00:18.5]} 1-0

[Event "Late-Titled-Tuesday-Blitz-October-03-2023"]
[Site "Chess.com"]
[Date "2023.10.03"]
[Round "2"]
[White "Marasmus01"]
[Black "ARTHURMOTIVATOR"]
[Result "1-0"]
[WhiteElo "2524"]
[BlackElo "2317"]
[TimeControl "180+1"]
[EndTime "14:17:23 PDT"]
[Termination "Marasmus01 won on time"]

1. d4 {[%clk 0:02:31]} 1... Nf6 {[%clk 0:02:58.1]} 2. Bf4 {[%clk 0:02:31]} 2...
g6 {[%clk 0:02:54]} 3. e3 {[%clk 0:02:31]} 3... Bg7 {[%clk 0:02:54.2]} 4. h3
{[%clk 0:02:31.5]} 4... O-O {[%clk 0:02:53.1]} 5. Bc4 {[%clk 0:02:31.7]} 5... d6
{[%clk 0:02:44.8]} 6. Nf3 {[%clk 0:02:31.6]} 6... b6 {[%clk 0:02:44.4]} 7. O-O
{[%clk 0:02:31.2]} 7... Bb7 {[%clk 0:02:44.9]} 8. Re1 {[%clk 0:02:31.4]} 8...
Nbd7 {[%clk 0:02:44.8]} 9. Bh2 {[%clk 0:02:31.3]} 9... Ne4 {[%clk 0:02:37.6]}
10. a4 {[%clk 0:02:27.6]} 10... a6 {[%clk 0:02:35.5]} 11. Nbd2 {[%clk
0:02:25.1]} 11... Nxd2 {[%clk 0:02:25.4]} 12. Nxd2 {[%clk 0:02:24.4]} 12... e5
{[%clk 0:02:25.8]} 13. c3 {[%clk 0:02:23.2]} 13... Kh8 {[%clk 0:02:20.9]} 14.
Qb3 {[%clk 0:02:20.4]} 14... f5 {[%clk 0:02:15.8]} 15. Bd5 {[%clk 0:02:19.8]}
15... c6 {[%clk 0:02:06.4]} 16. Be6 {[%clk 0:02:18.9]} 16... Bc8 {[%clk
0:01:42]} 17. Nc4 {[%clk 0:02:13.4]} 17... Nc5 {[%clk 0:01:33.3]} 18. dxc5
{[%clk 0:01:53.4]} 18... Bxe6 {[%clk 0:01:31.3]} 19. cxb6 {[%clk 0:01:45.8]}
19... Bxc4 {[%clk 0:01:29]} 20. Qxc4 {[%clk 0:01:46.7]} 20... Qxb6 {[%clk
0:01:29.2]} 21. b4 {[%clk 0:01:45.7]} 21... d5 {[%clk 0:01:18.4]} 22. a5 {[%clk
0:01:41]} 22... Qb5 {[%clk 0:01:06.9]} 23. Qb3 {[%clk 0:01:34.3]} 23... g5
{[%clk 0:01:03.5]} 24. Rad1 {[%clk 0:01:32.8]} 24... f4 {[%clk 0:01:00.8]} 25.
exf4 {[%clk 0:01:31.5]} 25... exf4 {[%clk 0:00:56.7]} 26. g3 {[%clk 0:01:24.9]}
26... Rae8 {[%clk 0:00:52.3]} 27. Qc2 {[%clk 0:01:18.3]} 27... f3 {[%clk
0:00:47.9]} 28. g4 {[%clk 0:01:17.2]} 28... Re2 {[%clk 0:00:45]} 29. Qc1 {[%clk
0:01:10.8]} 29... Rfe8 {[%clk 0:00:40.1]} 30. Rf1 {[%clk 0:01:09.9]} 30... h6
{[%clk 0:00:35]} 31. Bg3 {[%clk 0:01:07.7]} 31... Qc4 {[%clk 0:00:33.9]} 32. Qb1
{[%clk 0:01:07.3]} 32... Qe4 {[%clk 0:00:31.9]} 33. Qc1 {[%clk 0:01:04.1]} 33...
Rc2 {[%clk 0:00:22.9]} 34. Qa3 {[%clk 0:00:57.1]} 34... Rxc3 {[%clk 0:00:21.7]}
35. Qa4 {[%clk 0:00:57.2]} 35... Rc2 {[%clk 0:00:20.1]} 36. Rde1 {[%clk
0:00:55.2]} 36... Re2 {[%clk 0:00:20.3]} 37. Rc1 {[%clk 0:00:53.7]} 37... d4
{[%clk 0:00:19.6]} 38. Rxc6 {[%clk 0:00:52.4]} 38... d3 {[%clk 0:00:18.8]} 39.
Rcc1 {[%clk 0:00:48.9]} 39... d2 {[%clk 0:00:18.8]} 40. Rcd1 {[%clk 0:00:48]}
40... Re1 {[%clk 0:00:18]} 41. Kh2 {[%clk 0:00:43.4]} 41... Rxf1 {[%clk
0:00:16.7]} 42. Rxf1 {[%clk 0:00:43.3]} 42... Qe1 {[%clk 0:00:14.4]} 43. Qd7
{[%clk 0:00:38.2]} 43... Qe2 {[%clk 0:00:11.5]} 44. Rb1 {[%clk 0:00:32.5]} 44...
Kg8 {[%clk 0:00:05.9]} 45. b5 {[%clk 0:00:31.5]} 45... axb5 {[%clk 0:00:05.1]}
46. a6 {[%clk 0:00:31.6]} 46... b4 {[%clk 0:00:04.6]} 47. a7 {[%clk 0:00:31.4]}
47... b3 {[%clk 0:00:03.7]} 48. Qd5+ {[%clk 0:00:30.4]} 48... Kh8 {[%clk
0:00:03.1]} 49. Qxb3 {[%clk 0:00:29]} 49... Be5 {[%clk 0:00:03]} 50. Qb6 {[%clk
0:00:25.4]} 50... Bxg3+ {[%clk 0:00:01.1]} 51. Kxg3 {[%clk 0:00:26.3]} 51...
Qe5+ {[%clk 0:00:01.4]} 52. Kxf3 {[%clk 0:00:26.5]} 1-0

[Event "Late-Titled-Tuesday-Blitz-October-03-2023"]
[Site "Chess.com"]
[Date "2023.10.03"]
[Round "2"]
[White "NCchamp"]
[Black "Battever"]
[Result "0-1"]
[WhiteElo "2314"]
[BlackElo "2515"]
[TimeControl "180+1"]
[EndTime "14:17:28 PDT"]
[Termination "Battever won by checkmate"]

1. e4 {[%clk 0:02:43.2]} 1... e5 {[%clk 0:02:55.7]} 2. Nf3 {[%clk 0:02:43]} 2...
Nc6 {[%clk 0:02:56.2]} 3. Bc4 {[%clk 0:02:43.7]} 3... Bc5 {[%clk 0:02:53.5]} 4.
c3 {[%clk 0:02:43.7]} 4... Nf6 {[%clk 0:02:53.5]} 5. d4 {[%clk 0:02:44.6]} 5...
exd4 {[%clk 0:02:53.7]} 6. e5 {[%clk 0:02:44.8]} 6... d5 {[%clk 0:02:54.1]} 7.
Be2 {[%clk 0:02:45]} 7... Ne4 {[%clk 0:02:53.8]} 8. cxd4 {[%clk 0:02:45.7]} 8...
Bb6 {[%clk 0:02:54.2]} 9. Nc3 {[%clk 0:02:45.2]} 9... O-O {[%clk 0:02:54.4]} 10.
O-O {[%clk 0:02:45.6]} 10... f6 {[%clk 0:02:54.8]} 11. exf6 {[%clk 0:02:40.7]}
11... Rxf6 {[%clk 0:02:53.6]} 12. Nxe4 {[%clk 0:02:12.6]} 12... dxe4 {[%clk
0:02:54.5]} 13. Ne5 {[%clk 0:02:00]} 13... Nxe5 {[%clk 0:02:48]} 14. dxe5 {[%clk
0:02:00]} 14... Qxd1 {[%clk 0:02:48.9]} 15. Rxd1 {[%clk 0:01:59.8]} 15... Rxf2
{[%clk 0:02:48.1]} 16. Bc4+ {[%clk 0:01:53.8]} 16... Kh8 {[%clk 0:02:47.8]} 17.
Kh1 {[%clk 0:01:26.4]} 17... Bg4 {[%clk 0:02:47.3]} 18. Re1 {[%clk 0:01:23.4]}
18... Re8 {[%clk 0:02:30.9]} 19. h3 {[%clk 0:01:05]} 19... Be6 {[%clk
0:02:18.5]} 20. Rxe4 {[%clk 0:00:59.1]} 20... Bxc4 {[%clk 0:02:11.3]} 21. Rxc4
{[%clk 0:01:00]} 21... Rxe5 {[%clk 0:02:08.5]} 22. Bf4 {[%clk 0:00:56.2]} 22...
Re7 {[%clk 0:01:54.4]} 23. Rd1 {[%clk 0:00:53.1]} 23... h6 {[%clk 0:01:54.5]}
24. Rb4 {[%clk 0:00:33.5]} 24... a5 {[%clk 0:01:47.1]} 25. Rc4 {[%clk 0:00:33]}
25... Rxb2 {[%clk 0:01:46.6]} 26. a3 {[%clk 0:00:32.6]} 26... Kh7 {[%clk
0:01:40.2]} 27. Rdc1 {[%clk 0:00:31]} 27... c6 {[%clk 0:01:33.2]} 28. R1c2
{[%clk 0:00:29.4]} 28... Re1+ {[%clk 0:01:30.6]} 29. Kh2 {[%clk 0:00:29.2]}
29... Rb3 {[%clk 0:01:29]} 30. R4c3 {[%clk 0:00:28.4]} 30... Rbb1 {[%clk
0:01:19]} 31. Bd2 {[%clk 0:00:25.5]} 31... Bc7+ {[%clk 0:01:17.7]} 32. g3 {[%clk
0:00:24.2]} 32... Rh1+ {[%clk 0:01:17.8]} 33. Kg2 {[%clk 0:00:25.1]} 33... Rbg1+
{[%clk 0:01:17.6]} 34. Kf2 {[%clk 0:00:26]} 34... Rd1 {[%clk 0:01:08.8]} 35. Rf3
{[%clk 0:00:20.2]} 35... Rh2+ {[%clk 0:01:06.9]} 36. Ke3 {[%clk 0:00:20.9]}
36... Bd8 {[%clk 0:00:55]} 37. h4 {[%clk 0:00:20.3]} 37... Be7 {[%clk
0:00:52.1]} 38. Rf2 {[%clk 0:00:15.1]} 38... Rxf2 {[%clk 0:00:41.3]} 39. Kxf2
{[%clk 0:00:15.5]} 39... Bxa3 {[%clk 0:00:40.1]} 40. Ke2 {[%clk 0:00:14.3]}
40... Rb1 {[%clk 0:00:38.3]} 41. Kf3 {[%clk 0:00:13.3]} 41... Rb3+ {[%clk
0:00:38.1]} 42. Kg4 {[%clk 0:00:13.6]} 42... Bd6 {[%clk 0:00:37.8]} 43. Bc3
{[%clk 0:00:11.3]} 43... a4 {[%clk 0:00:36.8]} 44. Kh5 {[%clk 0:00:06.6]} 44...
a3 {[%clk 0:00:33.8]} 45. Rd2 {[%clk 0:00:04.5]} 45... Rxc3 {[%clk 0:00:27.8]}
46. Rxd6 {[%clk 0:00:04.6]} 46... Rc4 {[%clk 0:00:27.7]} 47. Rd7 {[%clk
0:00:03.8]} 47... a2 {[%clk 0:00:26.3]} 48. g4 {[%clk 0:00:04.5]} 48... a1=Q
{[%clk 0:00:25.6]} 49. Rxg7+ {[%clk 0:00:04.7]} 49... Kxg7 {[%clk 0:00:24.6]}
50. g5 {[%clk 0:00:04.3]} 50... Qd1# {[%clk 0:00:24.6]} 0-1

[Event "Late-Titled-Tuesday-Blitz-October-03-2023"]
[Site "Chess.com"]
[Date "2023.10.03"]
[Round "2"]
[White "German_Bazeev"]
[Black "HajiyevKanan"]
[Result "0-1"]
[WhiteElo "2788"]
[BlackElo "2550"]
[TimeControl "180+1"]
[EndTime "14:17:32 PDT"]
[Termination "HajiyevKanan won by resignation"]

1. c4 {[%clk 0:02:58.4]} 1... c6 {[%clk 0:02:06.3]} 2. Nf3 {[%clk 0:02:57.5]}
2... d5 {[%clk 0:02:07.2]} 3. e3 {[%clk 0:02:58.1]} 3... a6 {[%clk 0:02:07.3]}
4. Nc3 {[%clk 0:02:56.9]} 4... Nf6 {[%clk 0:02:07.9]} 5. b3 {[%clk 0:02:56.8]}
5... Bg4 {[%clk 0:02:07.4]} 6. Be2 {[%clk 0:02:52.7]} 6... e6 {[%clk 0:02:07.4]}
7. Bb2 {[%clk 0:02:52.7]} 7... Be7 {[%clk 0:02:08]} 8. Qc2 {[%clk 0:02:52.5]}
8... O-O {[%clk 0:02:08.3]} 9. O-O {[%clk 0:02:43.4]} 9... Nbd7 {[%clk
0:02:02.1]} 10. Rfd1 {[%clk 0:02:40.7]} 10... Rc8 {[%clk 0:02:01.2]} 11. h3
{[%clk 0:02:35.2]} 11... Bh5 {[%clk 0:02:01]} 12. d4 {[%clk 0:02:32.4]} 12...
Bg6 {[%clk 0:01:55.8]} 13. Bd3 {[%clk 0:02:31.2]} 13... Bxd3 {[%clk 0:01:55.1]}
14. Qxd3 {[%clk 0:02:32.1]} 14... Bb4 {[%clk 0:01:52.2]} 15. a3 {[%clk
0:02:28.7]} 15... Bxc3 {[%clk 0:01:51.3]} 16. Bxc3 {[%clk 0:02:29.6]} 16... Re8
{[%clk 0:01:50.8]} 17. Bb2 {[%clk 0:02:24.4]} 17... Qe7 {[%clk 0:01:45.9]} 18.
a4 {[%clk 0:02:23.2]} 18... Ne4 {[%clk 0:01:34.9]} 19. Nd2 {[%clk 0:02:20.7]}
19... Nxd2 {[%clk 0:01:31.9]} 20. Rxd2 {[%clk 0:02:21.6]} 20... Nf6 {[%clk
0:01:31.3]} 21. Ba3 {[%clk 0:02:20.6]} 21... Qc7 {[%clk 0:01:28.1]} 22. Rc2
{[%clk 0:02:20.1]} 22... Qb8 {[%clk 0:01:22.8]} 23. a5 {[%clk 0:02:16.9]} 23...
Ne4 {[%clk 0:01:19.7]} 24. f3 {[%clk 0:02:15.6]} 24... Ng3 {[%clk 0:01:18.3]}
25. Rac1 {[%clk 0:02:06.5]} 25... h5 {[%clk 0:01:14.1]} 26. Bb4 {[%clk
0:01:59.3]} 26... Qc7 {[%clk 0:01:07.6]} 27. Be1 {[%clk 0:01:58.4]} 27... Nf5
{[%clk 0:01:04.9]} 28. g4 {[%clk 0:01:50.2]} 28... Ne7 {[%clk 0:00:58.2]} 29.
Rg2 {[%clk 0:01:47.8]} 29... hxg4 {[%clk 0:00:36.3]} 30. hxg4 {[%clk 0:01:48.7]}
30... Ng6 {[%clk 0:00:34.8]} 31. f4 {[%clk 0:01:34.8]} 31... dxc4 {[%clk
0:00:30.4]} 32. bxc4 {[%clk 0:01:32.4]} 32... c5 {[%clk 0:00:30.5]} 33. f5
{[%clk 0:01:32.3]} 33... Nf8 {[%clk 0:00:30.4]} 34. Bg3 {[%clk 0:00:40.5]} 34...
Qe7 {[%clk 0:00:30]} 35. Bf4 {[%clk 0:00:28.9]} 35... cxd4 {[%clk 0:00:29.4]}
36. exd4 {[%clk 0:00:27.8]} 36... exf5 {[%clk 0:00:28.8]} 37. gxf5 {[%clk
0:00:26.8]} 37... Qe4 {[%clk 0:00:29]} 38. Qxe4 {[%clk 0:00:25.8]} 38... Rxe4
{[%clk 0:00:29.9]} 39. Be5 {[%clk 0:00:26.5]} 39... g6 {[%clk 0:00:23.8]} 40.
Rh2 {[%clk 0:00:26.3]} 40... f6 {[%clk 0:00:19.3]} 41. Bxf6 {[%clk 0:00:26]}
41... gxf5 {[%clk 0:00:19]} 42. Rf2 {[%clk 0:00:06.5]} 42... Rg4+ {[%clk
0:00:15.7]} 43. Kf1 {[%clk 0:00:06.5]} 43... Nd7 {[%clk 0:00:14.3]} 44. Be7
{[%clk 0:00:05.6]} 44... Rxd4 {[%clk 0:00:12.5]} 45. Rxf5 {[%clk 0:00:05.1]}
45... Re8 {[%clk 0:00:12.7]} 46. Bg5 {[%clk 0:00:05.4]} 46... Re5 {[%clk
0:00:11.1]} 47. Rxe5 {[%clk 0:00:05.4]} 47... Nxe5 {[%clk 0:00:12]} 48. Kg2
{[%clk 0:00:05.1]} 48... Rg4+ {[%clk 0:00:11.1]} 49. Kf2 {[%clk 0:00:05.6]}
49... Rxg5 {[%clk 0:00:11.9]} 50. Ke3 {[%clk 0:00:06.5]} 50... Rg4 {[%clk
0:00:11]} 51. c5 {[%clk 0:00:06.4]} 51... Rc4 {[%clk 0:00:11.1]} 52. Rg1+ {[%clk
0:00:06.2]} 52... Kf7 {[%clk 0:00:10.8]} 53. Rg5 {[%clk 0:00:07.1]} 53... Rxc5
{[%clk 0:00:10.8]} 54. Rg1 {[%clk 0:00:08]} 54... Rxa5 {[%clk 0:00:11]} 55. Ke4
{[%clk 0:00:08.9]} 55... Nc6 {[%clk 0:00:10.7]} 56. Rf1+ {[%clk 0:00:09.8]}
56... Ke6 {[%clk 0:00:11.1]} 57. Rc1 {[%clk 0:00:10.7]} 57... Re5+ {[%clk
0:00:11.2]} 0-1